[Event "*** SCC Grand Prix: Titled Tuesday Blitz"]
[Site "Chess.com"]
[Date "2020.08.25"]
[Round "8"]
[White "GMKrikor"]
[Black "Chess_Boxer123"]
[Result "1-0"]
[WhiteElo "2718"]
[BlackElo "2548"]
[TimeControl "180+1"]
[EndTime "11:36:50 PDT"]
[Termination "GMKrikor won by resignation"]

1. e4 {[%clk 0:03:00.9]} 1... c6 {[%clk 0:02:59.5]} 2. d4 {[%clk 0:02:59.9]}
2... d5 {[%clk 0:02:59.4]} 3. Nc3 {[%clk 0:02:59.5]} 3... dxe4 {[%clk 0:02:59]}
4. Nxe4 {[%clk 0:02:58.7]} 4... Bf5 {[%clk 0:02:59.1]} 5. Ng3 {[%clk 0:02:56.1]}
5... Bg6 {[%clk 0:02:59.2]} 6. h4 {[%clk 0:02:56.3]} 6... h6 {[%clk 0:02:59.1]}
7. Nf3 {[%clk 0:02:55.2]} 7... Nd7 {[%clk 0:02:58.6]} 8. h5 {[%clk 0:02:55.3]}
8... Bh7 {[%clk 0:02:58.7]} 9. Bd3 {[%clk 0:02:53.9]} 9... Bxd3 {[%clk
0:02:58.4]} 10. Qxd3 {[%clk 0:02:54.8]} 10... e6 {[%clk 0:02:58.2]} 11. Bd2
{[%clk 0:02:53.9]} 11... Ngf6 {[%clk 0:02:54.1]} 12. O-O-O {[%clk 0:02:52.8]}
12... Be7 {[%clk 0:02:54.2]} 13. Kb1 {[%clk 0:02:50.9]} 13... Qb6 {[%clk
0:02:44.8]} 14. Ne4 {[%clk 0:02:49.3]} 14... Nxe4 {[%clk 0:02:44.3]} 15. Qxe4
{[%clk 0:02:48.7]} 15... Nf6 {[%clk 0:02:44.5]} 16. Qe2 {[%clk 0:02:46.7]} 16...
O-O-O {[%clk 0:02:39]} 17. c4 {[%clk 0:02:38.3]} 17... Qa6 {[%clk 0:01:44.8]}
18. Ne5 {[%clk 0:02:19.5]} 18... Rhf8 {[%clk 0:01:43]} 19. Bc1 {[%clk
0:02:18.3]} 19... Nd7 {[%clk 0:01:40.7]} 20. Nf3 {[%clk 0:02:03.8]} 20... Bf6
{[%clk 0:01:40.1]} 21. Rhe1 {[%clk 0:02:00.3]} 21... Rfe8 {[%clk 0:01:39.6]} 22.
Ne5 {[%clk 0:01:54.6]} 22... Nxe5 {[%clk 0:01:07.7]} 23. dxe5 {[%clk 0:01:55.5]}
23... Be7 {[%clk 0:01:00.7]} 24. f4 {[%clk 0:01:47.9]} 24... Rxd1 {[%clk
0:00:50.9]} 25. Rxd1 {[%clk 0:01:48.8]} 25... Rd8 {[%clk 0:00:51.4]} 26. Rxd8+
{[%clk 0:01:48.7]} 26... Bxd8 {[%clk 0:00:51.6]} 27. g4 {[%clk 0:01:46.9]} 27...
c5 {[%clk 0:00:48.1]} 28. Qe4 {[%clk 0:01:41.9]} 28... Qa4 {[%clk 0:00:38.7]}
29. b3 {[%clk 0:01:34.7]} 29... Qd7 {[%clk 0:00:39]} 30. Kc2 {[%clk 0:01:33.2]}
30... f5 {[%clk 0:00:36.8]} 31. gxf5 {[%clk 0:01:24.9]} 31... exf5 {[%clk
0:00:36.9]} 32. Qd5 {[%clk 0:01:25.5]} 32... Qe7 {[%clk 0:00:24]} 33. Be3 {[%clk
0:01:17.3]} 33... b6 {[%clk 0:00:24.3]} 34. Qa8+ {[%clk 0:01:16.6]} 34... Kd7
{[%clk 0:00:24.3]} 35. Qxa7+ {[%clk 0:01:14.9]} 35... Ke8 {[%clk 0:00:24.6]} 36.
Qxe7+ {[%clk 0:01:04]} 36... Kxe7 {[%clk 0:00:24.6]} 37. a3 {[%clk 0:01:04.1]}
37... Kf7 {[%clk 0:00:13.8]} 38. b4 {[%clk 0:01:04.1]} 38... cxb4 {[%clk
0:00:14.2]} 39. axb4 {[%clk 0:01:04.8]} 39... g6 {[%clk 0:00:12.2]} 40. hxg6+
{[%clk 0:01:02.9]} 40... Kxg6 {[%clk 0:00:13.1]} 41. Kd3 {[%clk 0:00:58.9]}
41... h5 {[%clk 0:00:13.1]} 42. Ke2 {[%clk 0:00:56.9]} 42... Kf7 {[%clk
0:00:11.8]} 43. Kf3 {[%clk 0:00:53.1]} 43... Ke6 {[%clk 0:00:12]} 44. b5 {[%clk
0:00:45.7]} 44... Bc7 {[%clk 0:00:05.3]} 45. Kg3 {[%clk 0:00:43]} 45... Bd8
{[%clk 0:00:04.4]} 46. Bg1 {[%clk 0:00:43.6]} 46... Kd7 {[%clk 0:00:02.6]} 47.
c5 {[%clk 0:00:42.8]} 47... bxc5 {[%clk 0:00:02.8]} 48. Bxc5 {[%clk 0:00:43.7]}
48... Kc8 {[%clk 0:00:01.4]} 49. e6 {[%clk 0:00:43]} 49... Bf6 {[%clk
0:00:01.7]} 50. b6 {[%clk 0:00:42.3]} 50... Kb7 {[%clk 0:00:01.7]} 51. e7 {[%clk
0:00:41.8]} 51... Bxe7 {[%clk 0:00:02]} 52. Bxe7 {[%clk 0:00:42.7]} 52... Kxb6
{[%clk 0:00:02.6]} 53. Kh4 {[%clk 0:00:43.1]} 53... Kc6 {[%clk 0:00:03.2]} 54.
Bg5 {[%clk 0:00:43.9]} 54... Kd5 {[%clk 0:00:03.5]} 55. Kxh5 {[%clk 0:00:44.8]}
55... Ke4 {[%clk 0:00:04.2]} 56. Kg6 {[%clk 0:00:45.3]} 1-0

[Event "*** SCC Grand Prix: Titled Tuesday Blitz"]
[Site "Chess.com"]
[Date "2020.08.25"]
[Round "8"]
[White "MomchilPetkov"]
[Black "1f3_2g41-0"]
[Result "1-0"]
[WhiteElo "2557"]
[BlackElo "2438"]
[TimeControl "180+1"]
[EndTime "11:36:50 PDT"]
[Termination "MomchilPetkov won by resignation"]

1. e4 {[%clk 0:03:00.9]} 1... c5 {[%clk 0:03:00.2]} 2. Nf3 {[%clk 0:03:00.6]}
2... d6 {[%clk 0:03:00.8]} 3. d4 {[%clk 0:03:00.3]} 3... cxd4 {[%clk 0:03:01.7]}
4. Nxd4 {[%clk 0:03:00.8]} 4... Nf6 {[%clk 0:03:02.4]} 5. Nc3 {[%clk 0:03:01.2]}
5... a6 {[%clk 0:03:03]} 6. Bg5 {[%clk 0:03:01.3]} 6... e6 {[%clk 0:03:01.8]} 7.
f4 {[%clk 0:03:01.3]} 7... Be7 {[%clk 0:03:02.5]} 8. Qf3 {[%clk 0:03:00.4]} 8...
O-O {[%clk 0:03:03.1]} 9. O-O-O {[%clk 0:03:00.8]} 9... Nbd7 {[%clk 0:03:03.4]}
10. g4 {[%clk 0:02:57.9]} 10... Qc7 {[%clk 0:03:02.9]} 11. Bxf6 {[%clk
0:02:54.9]} 11... Bxf6 {[%clk 0:03:02.3]} 12. g5 {[%clk 0:02:52.7]} 12... Bxd4
{[%clk 0:03:02.7]} 13. Rxd4 {[%clk 0:02:52.3]} 13... b5 {[%clk 0:03:03.3]} 14.
f5 {[%clk 0:02:37.9]} 14... Bb7 {[%clk 0:02:59.3]} 15. Bh3 {[%clk 0:02:34.6]}
15... Ne5 {[%clk 0:02:56.9]} 16. Qg3 {[%clk 0:02:34.9]} 16... exf5 {[%clk
0:02:50.2]} 17. Bxf5 {[%clk 0:02:29.1]} 17... Qc5 {[%clk 0:02:41.7]} 18. Rhd1
{[%clk 0:02:27.5]} 18... b4 {[%clk 0:02:31.5]} 19. Nd5 {[%clk 0:02:26.9]} 19...
Bxd5 {[%clk 0:02:31.4]} 20. Rxd5 {[%clk 0:02:27]} 20... Qc4 {[%clk 0:02:31.8]}
21. Qb3 {[%clk 0:02:24.3]} 21... g6 {[%clk 0:02:28.1]} 22. Bh3 {[%clk
0:02:20.9]} 22... Qxe4 {[%clk 0:02:27.1]} 23. Rxd6 {[%clk 0:02:08.7]} 23... Qf4+
{[%clk 0:02:25.1]} 24. Kb1 {[%clk 0:02:09]} 24... Qxg5 {[%clk 0:02:20.9]} 25.
Qg3 {[%clk 0:02:06.5]} 25... Qe7 {[%clk 0:02:08.6]} 26. R6d5 {[%clk 0:02:03.4]}
26... Rad8 {[%clk 0:02:06.1]} 27. Bg2 {[%clk 0:01:29.9]} 27... Nc4 {[%clk
0:02:00.8]} 28. Qf4 {[%clk 0:01:15.9]} 28... Rxd5 {[%clk 0:01:29.6]} 29. Bxd5
{[%clk 0:00:56.4]} 29... Ne3 {[%clk 0:01:29.4]} 30. Rd3 {[%clk 0:00:56.8]} 30...
Nxd5 {[%clk 0:01:24.3]} 31. Rxd5 {[%clk 0:00:56.3]} 31... Qe1+ {[%clk
0:01:24.9]} 32. Qc1 {[%clk 0:00:56.7]} 32... Qe4 {[%clk 0:01:23.9]} 33. Qd2
{[%clk 0:00:50.4]} 33... Re8 {[%clk 0:01:21.9]} 34. b3 {[%clk 0:00:44.8]} 34...
Qe1+ {[%clk 0:01:09.7]} 35. Kb2 {[%clk 0:00:31.2]} 35... Qxd2 {[%clk 0:01:08.5]}
36. Rxd2 {[%clk 0:00:30.8]} 36... Re5 {[%clk 0:01:05.5]} 37. Rd4 {[%clk
0:00:28.6]} 37... a5 {[%clk 0:01:05.3]} 38. a3 {[%clk 0:00:26.5]} 38... bxa3+
{[%clk 0:01:05]} 39. Kxa3 {[%clk 0:00:27.4]} 39... f5 {[%clk 0:01:05.1]} 40. c4
{[%clk 0:00:26.8]} 40... g5 {[%clk 0:01:04.9]} 41. b4 {[%clk 0:00:22.7]} 41...
axb4+ {[%clk 0:01:03.7]} 42. Kxb4 {[%clk 0:00:23.6]} 42... f4 {[%clk 0:01:04]}
43. c5 {[%clk 0:00:24.5]} 43... f3 {[%clk 0:01:02.9]} 44. c6 {[%clk 0:00:19.5]}
44... Re1 {[%clk 0:00:18]} 45. c7 {[%clk 0:00:16.3]} 45... Rb1+ {[%clk
0:00:07.7]} 46. Kc5 {[%clk 0:00:16]} 46... Rc1+ {[%clk 0:00:06.4]} 47. Rc4
{[%clk 0:00:15.9]} 47... f2 {[%clk 0:00:06.5]} 48. c8=Q+ {[%clk 0:00:15]} 48...
Kg7 {[%clk 0:00:06.7]} 49. Rxc1 {[%clk 0:00:15.4]} 1-0

[Event "*** SCC Grand Prix: Titled Tuesday Blitz"]
[Site "Chess.com"]
[Date "2020.08.25"]
[Round "8"]
[White "anon481216"]
[Black "Chernobay_Artem"]
[Result "0-1"]
[WhiteElo "2445"]
[BlackElo "2574"]
[TimeControl "180+1"]
[EndTime "11:36:52 PDT"]
[Termination "Chernobay_Artem won on time"]

1. d4 {[%clk 0:03:00.9]} 1... g6 {[%clk 0:03:00.3]} 2. c4 {[%clk 0:03:01]} 2...
Bg7 {[%clk 0:03:00.8]} 3. e4 {[%clk 0:03:01.6]} 3... d6 {[%clk 0:03:00.2]} 4.
Nc3 {[%clk 0:03:01.7]} 4... e5 {[%clk 0:02:59.8]} 5. Nf3 {[%clk 0:03:01.2]} 5...
Nc6 {[%clk 0:02:59.2]} 6. Bg5 {[%clk 0:02:58.6]} 6... f6 {[%clk 0:02:40.6]} 7.
Be3 {[%clk 0:02:57.1]} 7... Nh6 {[%clk 0:02:35.4]} 8. dxe5 {[%clk 0:02:56]} 8...
dxe5 {[%clk 0:02:16.3]} 9. Qxd8+ {[%clk 0:02:55.1]} 9... Nxd8 {[%clk 0:02:14.4]}
10. h3 {[%clk 0:02:48.5]} 10... Ne6 {[%clk 0:02:03.4]} 11. c5 {[%clk 0:02:44.1]}
11... c6 {[%clk 0:02:02.1]} 12. O-O-O {[%clk 0:02:23.3]} 12... Bd7 {[%clk
0:01:35]} 13. Bc4 {[%clk 0:02:09.5]} 13... O-O-O {[%clk 0:01:33.2]} 14. g4
{[%clk 0:01:46.6]} 14... Nf7 {[%clk 0:01:13.2]} 15. Rd2 {[%clk 0:01:43.1]} 15...
Bh6 {[%clk 0:00:57.5]} 16. Rhd1 {[%clk 0:01:40.4]} 16... Rhe8 {[%clk 0:00:49.6]}
17. b4 {[%clk 0:01:30.3]} 17... Bf4 {[%clk 0:00:48.1]} 18. Kc2 {[%clk
0:01:26.2]} 18... Nfg5 {[%clk 0:00:46.3]} 19. Ng1 {[%clk 0:00:52.5]} 19... h5
{[%clk 0:00:25.4]} 20. Bxf4 {[%clk 0:00:40.8]} 20... Nxf4 {[%clk 0:00:24]} 21.
f3 {[%clk 0:00:40.7]} 21... h4 {[%clk 0:00:15.6]} 22. Rd6 {[%clk 0:00:27.9]}
22... Rf8 {[%clk 0:00:11.4]} 23. Bf1 {[%clk 0:00:20.3]} 23... Be6 {[%clk
0:00:10.2]} 24. Nce2 {[%clk 0:00:16]} 24... Bxa2 {[%clk 0:00:08.3]} 25. Nxf4
{[%clk 0:00:14.4]} 25... exf4 {[%clk 0:00:08.7]} 26. Rxd8+ {[%clk 0:00:12.7]}
26... Rxd8 {[%clk 0:00:08.1]} 27. Ra1 {[%clk 0:00:13.2]} 27... Be6 {[%clk
0:00:07]} 28. Rxa7 {[%clk 0:00:12.8]} 28... Kb8 {[%clk 0:00:07.7]} 29. Ra1
{[%clk 0:00:12.5]} 29... Rd4 {[%clk 0:00:07.7]} 30. Kc3 {[%clk 0:00:12.4]} 30...
Rd8 {[%clk 0:00:07.3]} 31. Be2 {[%clk 0:00:11]} 31... f5 {[%clk 0:00:06.9]} 32.
exf5 {[%clk 0:00:09.7]} 32... gxf5 {[%clk 0:00:07]} 33. Re1 {[%clk 0:00:07.6]}
33... Bc8 {[%clk 0:00:06]} 34. Bf1 {[%clk 0:00:05.5]} 34... Kc7 {[%clk
0:00:04.3]} 35. Re7+ {[%clk 0:00:05.8]} 35... Rd7 {[%clk 0:00:03.7]} 36. Re5
{[%clk 0:00:05.9]} 36... Rd5 {[%clk 0:00:03.4]} 37. Re7+ {[%clk 0:00:05.4]}
37... Bd7 {[%clk 0:00:03.8]} 38. Rg7 {[%clk 0:00:05.2]} 38... fxg4 {[%clk
0:00:04.2]} 39. fxg4 {[%clk 0:00:04.4]} 39... f3 {[%clk 0:00:03.3]} 40. Bc4
{[%clk 0:00:02.9]} 40... f2 {[%clk 0:00:03.3]} 0-1

[Event "*** SCC Grand Prix: Titled Tuesday Blitz"]
[Site "Chess.com"]
[Date "2020.08.25"]
[Round "8"]
[White "dretch"]
[Black "Keithonsky"]
[Result "1-0"]
[WhiteElo "2761"]
[BlackElo "2544"]
[TimeControl "180+1"]
[EndTime "11:36:55 PDT"]
[Termination "dretch won by checkmate"]

1. d4 {[%clk 0:03:00.9]} 1... d5 {[%clk 0:03:00.4]} 2. c4 {[%clk 0:03:00.8]}
2... e6 {[%clk 0:03:00.4]} 3. Nc3 {[%clk 0:03:00.4]} 3... a6 {[%clk 0:03:00.8]}
4. cxd5 {[%clk 0:03:00]} 4... exd5 {[%clk 0:03:01.7]} 5. Bf4 {[%clk 0:03:00.3]}
5... Nf6 {[%clk 0:03:00.5]} 6. e3 {[%clk 0:03:00.4]} 6... Be6 {[%clk 0:03:00.5]}
7. Bd3 {[%clk 0:02:59.1]} 7... Bd6 {[%clk 0:03:00.9]} 8. Bg5 {[%clk 0:02:59.1]}
8... Nbd7 {[%clk 0:02:58.7]} 9. Nge2 {[%clk 0:02:59]} 9... c6 {[%clk 0:02:59.1]}
10. f3 {[%clk 0:02:46.6]} 10... Qc7 {[%clk 0:02:57.6]} 11. Bf4 {[%clk
0:02:41.6]} 11... O-O {[%clk 0:02:55.3]} 12. O-O {[%clk 0:02:40.7]} 12... Rfe8
{[%clk 0:02:55.6]} 13. Qd2 {[%clk 0:02:40.1]} 13... c5 {[%clk 0:02:54.2]} 14.
Rac1 {[%clk 0:02:38.9]} 14... Bxf4 {[%clk 0:02:50.7]} 15. exf4 {[%clk
0:02:37.3]} 15... g6 {[%clk 0:02:41.7]} 16. f5 {[%clk 0:02:26.7]} 16... gxf5
{[%clk 0:02:35.3]} 17. Ng3 {[%clk 0:02:17.1]} 17... f4 {[%clk 0:02:24.2]} 18.
Nge2 {[%clk 0:02:16.4]} 18... cxd4 {[%clk 0:02:23.5]} 19. Nb5 {[%clk 0:02:10.7]}
19... Qe5 {[%clk 0:02:21.1]} 20. Nc7 {[%clk 0:02:01.6]} 20... Nh5 {[%clk
0:02:20.5]} 21. Kh1 {[%clk 0:01:51.9]} 21... Kh8 {[%clk 0:02:17.4]} 22. Bb1
{[%clk 0:01:46.2]} 22... Rac8 {[%clk 0:02:00.3]} 23. Nxe8 {[%clk 0:01:43.3]}
23... Rxe8 {[%clk 0:02:01.2]} 24. Qxd4 {[%clk 0:01:42.3]} 24... f6 {[%clk
0:01:59.1]} 25. Qd3 {[%clk 0:01:38.3]} 25... Re7 {[%clk 0:01:55.5]} 26. Rfe1
{[%clk 0:01:35.3]} 26... Qg5 {[%clk 0:01:51.7]} 27. Nd4 {[%clk 0:01:25.8]} 27...
Ne5 {[%clk 0:01:41]} 28. Qa3 {[%clk 0:01:06.5]} 28... Rg7 {[%clk 0:01:33.6]} 29.
Re2 {[%clk 0:00:36.1]} 29... Bg8 {[%clk 0:01:27.2]} 30. Nf5 {[%clk 0:00:28.2]}
30... Rf7 {[%clk 0:01:17.3]} 31. Rc8 {[%clk 0:00:23.7]} 31... Ng7 {[%clk
0:01:12.9]} 32. Nd6 {[%clk 0:00:17.7]} 32... Rd7 {[%clk 0:01:01.5]} 33. Qc5
{[%clk 0:00:12.5]} 33... Ne6 {[%clk 0:00:59.5]} 34. Qb4 {[%clk 0:00:11.2]} 34...
Rg7 {[%clk 0:00:48.7]} 35. Nf5 {[%clk 0:00:10.4]} 35... Rd7 {[%clk 0:00:46.3]}
36. Qe1 {[%clk 0:00:09.9]} 36... Ng7 {[%clk 0:00:38.1]} 37. Nxg7 {[%clk
0:00:09]} 37... Rxg7 {[%clk 0:00:37.4]} 38. Qf2 {[%clk 0:00:07.1]} 38... h5
{[%clk 0:00:34.3]} 39. h4 {[%clk 0:00:05.6]} 39... Qg3 {[%clk 0:00:28.3]} 40.
Qxg3 {[%clk 0:00:05.4]} 40... Rxg3 {[%clk 0:00:29.1]} 41. Bf5 {[%clk 0:00:04.8]}
41... d4 {[%clk 0:00:26.1]} 42. Rd2 {[%clk 0:00:04.5]} 42... d3 {[%clk
0:00:22.6]} 43. Bxd3 {[%clk 0:00:04.6]} 43... Kg7 {[%clk 0:00:19.9]} 44. Be4
{[%clk 0:00:04.9]} 44... Be6 {[%clk 0:00:19.8]} 45. Rc7+ {[%clk 0:00:05.3]}
45... Bf7 {[%clk 0:00:18.9]} 46. Rxb7 {[%clk 0:00:06.2]} 46... f5 {[%clk
0:00:19.1]} 47. Bd5 {[%clk 0:00:06.6]} 47... Kf6 {[%clk 0:00:19.9]} 48. Bxf7
{[%clk 0:00:06.9]} 48... Nxf7 {[%clk 0:00:20.7]} 49. Rdd7 {[%clk 0:00:07.5]}
49... Ne5 {[%clk 0:00:19.9]} 50. Rd6# {[%clk 0:00:08]} 1-0

[Event "*** SCC Grand Prix: Titled Tuesday Blitz"]
[Site "Chess.com"]
[Date "2020.08.25"]
[Round "8"]
[White "sertalzin"]
[Black "Chamal_Gedgafov"]
[Result "0-1"]
[WhiteElo "1862"]
[BlackElo "2113"]
[TimeControl "180+1"]
[EndTime "11:36:56 PDT"]
[Termination "Chamal_Gedgafov won on time"]

1. d4 {[%clk 0:03:00.9]} 1... Nf6 {[%clk 0:02:58]} 2. c4 {[%clk 0:03:00.2]} 2...
e6 {[%clk 0:02:58.2]} 3. Nc3 {[%clk 0:02:59.6]} 3... Bb4 {[%clk 0:02:57.8]} 4.
e3 {[%clk 0:02:59.3]} 4... O-O {[%clk 0:02:56.6]} 5. Ne2 {[%clk 0:02:58.4]} 5...
b6 {[%clk 0:02:56.6]} 6. a3 {[%clk 0:02:58.1]} 6... Be7 {[%clk 0:02:56.5]} 7. d5
{[%clk 0:02:57.8]} 7... Bb7 {[%clk 0:02:55.8]} 8. Ng3 {[%clk 0:02:57.2]} 8...
Re8 {[%clk 0:02:54.8]} 9. Be2 {[%clk 0:02:57]} 9... d6 {[%clk 0:02:51.7]} 10.
O-O {[%clk 0:02:56.4]} 10... e5 {[%clk 0:02:50.5]} 11. e4 {[%clk 0:02:56]} 11...
Nbd7 {[%clk 0:02:50.7]} 12. b4 {[%clk 0:02:55.3]} 12... a5 {[%clk 0:02:50.7]}
13. Be3 {[%clk 0:02:52.9]} 13... Nf8 {[%clk 0:02:40.2]} 14. Qb3 {[%clk
0:02:48.4]} 14... Ng6 {[%clk 0:02:37.3]} 15. c5 {[%clk 0:02:28.9]} 15... bxc5
{[%clk 0:02:34]} 16. bxc5 {[%clk 0:02:28.2]} 16... Ba6 {[%clk 0:02:32.6]} 17.
Bxa6 {[%clk 0:02:26.8]} 17... Rxa6 {[%clk 0:02:33.5]} 18. c6 {[%clk 0:02:24.6]}
18... Nf4 {[%clk 0:02:30.7]} 19. a4 {[%clk 0:02:20]} 19... Ng4 {[%clk
0:02:27.2]} 20. Bd2 {[%clk 0:02:10.9]} 20... Ra8 {[%clk 0:02:21.8]} 21. f3
{[%clk 0:02:10.2]} 21... Nh6 {[%clk 0:02:19.5]} 22. Nb5 {[%clk 0:02:07.5]} 22...
g6 {[%clk 0:02:15.7]} 23. Qc2 {[%clk 0:02:00.1]} 23... Rf8 {[%clk 0:02:11]} 24.
Bc3 {[%clk 0:01:48.9]} 24... f5 {[%clk 0:02:01.9]} 25. Qd2 {[%clk 0:01:47.4]}
25... Bg5 {[%clk 0:01:58.8]} 26. Qe1 {[%clk 0:01:41.9]} 26... Nd3 {[%clk
0:01:54.5]} 27. Qe2 {[%clk 0:01:24.5]} 27... Nf4 {[%clk 0:01:42.7]} 28. Qe1
{[%clk 0:01:17.7]} 28... Nd3 {[%clk 0:01:41.7]} 29. Qe2 {[%clk 0:01:17.4]} 29...
Nc5 {[%clk 0:01:41.1]} 30. Rfd1 {[%clk 0:01:02]} 30... fxe4 {[%clk 0:01:25.5]}
31. Nxe4 {[%clk 0:00:55.1]} 31... Nxe4 {[%clk 0:01:21]} 32. fxe4 {[%clk
0:00:54.9]} 32... Bf4 {[%clk 0:01:17.1]} 33. g3 {[%clk 0:00:47.4]} 33... Bg5
{[%clk 0:01:16.3]} 34. Rf1 {[%clk 0:00:39.6]} 34... Nf7 {[%clk 0:01:03.4]} 35.
Qe1 {[%clk 0:00:36.9]} 35... Qe7 {[%clk 0:00:54.3]} 36. Bxa5 {[%clk 0:00:34.8]}
36... Rac8 {[%clk 0:00:51.9]} 37. Bd2 {[%clk 0:00:17.9]} 37... Bxd2 {[%clk
0:00:49.1]} 38. Qxd2 {[%clk 0:00:17.5]} 38... Ng5 {[%clk 0:00:49.5]} 39. Qe2
{[%clk 0:00:12.9]} 39... h5 {[%clk 0:00:43.4]} 40. h4 {[%clk 0:00:10.9]} 40...
Nh7 {[%clk 0:00:41.3]} 41. Kg2 {[%clk 0:00:11]} 41... Nf6 {[%clk 0:00:40.9]} 42.
a5 {[%clk 0:00:09.3]} 42... Ng4 {[%clk 0:00:39.3]} 43. a6 {[%clk 0:00:08.6]}
43... Rb8 {[%clk 0:00:38.7]} 44. a7 {[%clk 0:00:07.8]} 44... Ra8 {[%clk
0:00:38.4]} 45. Rab1 {[%clk 0:00:04.8]} 45... g5 {[%clk 0:00:35.5]} 46. Rxf8+
{[%clk 0:00:04]} 46... Kxf8 {[%clk 0:00:34.9]} 47. Rf1+ {[%clk 0:00:02.8]} 47...
Kg7 {[%clk 0:00:34.7]} 48. hxg5 {[%clk 0:00:02.9]} 48... Qxg5 {[%clk 0:00:29.2]}
0-1

[Event "*** SCC Grand Prix: Titled Tuesday Blitz"]
[Site "Chess.com"]
[Date "2020.08.25"]
[Round "8"]
[White "Firouzja2003"]
[Black "skiff134"]
[Result "1-0"]
[WhiteElo "2982"]
[BlackElo "2730"]
[TimeControl "180+1"]
[EndTime "11:36:58 PDT"]
[Termination "Firouzja2003 won on time"]

1. e4 {[%clk 0:03:00.9]} 1... c6 {[%clk 0:03:00]} 2. d4 {[%clk 0:02:59.5]} 2...
d5 {[%clk 0:03:00.7]} 3. e5 {[%clk 0:02:59.4]} 3... c5 {[%clk 0:03:00.9]} 4.
dxc5 {[%clk 0:02:57.9]} 4... e6 {[%clk 0:03:01.4]} 5. a3 {[%clk 0:02:56]} 5...
Bxc5 {[%clk 0:03:01.5]} 6. Nf3 {[%clk 0:02:52.2]} 6... Ne7 {[%clk 0:03:01.1]} 7.
Bd3 {[%clk 0:02:52.2]} 7... Nbc6 {[%clk 0:03:01]} 8. O-O {[%clk 0:02:47.9]} 8...
Ng6 {[%clk 0:03:01]} 9. b4 {[%clk 0:02:43.8]} 9... Bb6 {[%clk 0:02:52.6]} 10.
Bb2 {[%clk 0:02:41.2]} 10... Nf4 {[%clk 0:02:49.5]} 11. c4 {[%clk 0:02:34.8]}
11... O-O {[%clk 0:02:33.4]} 12. c5 {[%clk 0:02:14.9]} 12... Nxd3 {[%clk
0:02:30.3]} 13. Qxd3 {[%clk 0:02:15.8]} 13... Bc7 {[%clk 0:02:30.5]} 14. Re1
{[%clk 0:02:13.6]} 14... f6 {[%clk 0:02:25.3]} 15. Nbd2 {[%clk 0:02:11.1]} 15...
Bd7 {[%clk 0:01:57.5]} 16. Rac1 {[%clk 0:02:07.8]} 16... a6 {[%clk 0:01:52.4]}
17. Qe3 {[%clk 0:01:39.3]} 17... Rf7 {[%clk 0:01:33.9]} 18. Nb3 {[%clk
0:01:34.8]} 18... Qe7 {[%clk 0:01:22]} 19. Rcd1 {[%clk 0:01:14.8]} 19... Raf8
{[%clk 0:01:19.3]} 20. Rd2 {[%clk 0:01:09.9]} 20... Qd8 {[%clk 0:00:55.5]} 21.
h3 {[%clk 0:01:00.9]} 21... Qb8 {[%clk 0:00:51.3]} 22. Bc3 {[%clk 0:00:50.8]}
22... Ne7 {[%clk 0:00:26.1]} 23. Qe2 {[%clk 0:00:30]} 23... Ng6 {[%clk
0:00:21.9]} 24. exf6 {[%clk 0:00:20.7]} 24... gxf6 {[%clk 0:00:22.4]} 25. c6
{[%clk 0:00:21.2]} 25... Nf4 {[%clk 0:00:18.2]} 26. Qe3 {[%clk 0:00:20.8]} 26...
bxc6 {[%clk 0:00:11.1]} 27. g3 {[%clk 0:00:16.2]} 27... Nxh3+ {[%clk 0:00:06.9]}
28. Kg2 {[%clk 0:00:15.9]} 28... Nf4+ {[%clk 0:00:07.5]} 29. gxf4 {[%clk
0:00:14.1]} 29... Bxf4 {[%clk 0:00:08.4]} 30. Qc5 {[%clk 0:00:12.4]} 30... Rg7+
{[%clk 0:00:06.1]} 31. Kf1 {[%clk 0:00:13]} 31... e5 {[%clk 0:00:06.6]} 32. Ng1
{[%clk 0:00:05.3]} 32... Qc8 {[%clk 0:00:04.5]} 33. Re3 {[%clk 0:00:04.8]} 33...
Bf5 {[%clk 0:00:04]} 34. Rf3 {[%clk 0:00:04.3]} 34... Bxd2 {[%clk 0:00:03.6]}
35. Nxd2 {[%clk 0:00:04.4]} 35... Be4 {[%clk 0:00:04.2]} 36. Nxe4 {[%clk
0:00:04]} 36... dxe4 {[%clk 0:00:04.1]} 37. Rg3 {[%clk 0:00:04.7]} 37... Rxg3
{[%clk 0:00:03.7]} 38. fxg3 {[%clk 0:00:05.6]} 38... Qf5+ {[%clk 0:00:03.6]} 39.
Kg2 {[%clk 0:00:05.8]} 39... Rd8 {[%clk 0:00:03.7]} 40. Qxc6 {[%clk 0:00:05.2]}
40... Rd3 {[%clk 0:00:03.7]} 41. Qc4+ {[%clk 0:00:05.1]} 41... Kg7 {[%clk
0:00:03.5]} 42. Be1 {[%clk 0:00:03.3]} 42... Qg4 {[%clk 0:00:02.5]} 43. Qc7+
{[%clk 0:00:03.2]} 43... Kg6 {[%clk 0:00:02.4]} 44. Qc4 {[%clk 0:00:02.9]} 1-0